[Event "Titled Tuesday Blitz November 22 Early 2022"]
[White "Gines Esteo, Pedro Antonio"]
[Black "Han, Yichen"]
[WhiteFideId "32080190"]
[BlackFideId "1054430"]
[WhiteElo "2422"]
[BlackElo "2323"]
[Result "0-1"]
[Round "09"]
[TimeControl "180+1"]
[Date "2022.11.23"]
[WhiteClock "0:00:01"]
[BlackClock "0:00:20"]

1. Nf3 {[%clk 0:03:00]}  Nf6 {[%clk 0:02:56]} 2. g3 {[%clk 0:03:01]}  d5 {[%clk 0:02:56]} 3. Bg2 {[%clk 0:02:36]}  Nbd7 {[%clk 0:02:56]} 4. d4 {[%clk 0:02:33]}  Nb6 {[%clk 0:02:56]} 5. Nc3 {[%clk 0:02:33]}  Bf5 {[%clk 0:02:55]} 6. Nh4 {[%clk 0:02:30]}  Bd7 {[%clk 0:02:51]} 7. e4 {[%clk 0:02:29]}  dxe4 {[%clk 0:02:41]} 8. Nxe4 {[%clk 0:02:29]}  c6 {[%clk 0:02:37]} 9. O-O {[%clk 0:02:23]}  Nxe4 {[%clk 0:02:34]} 10. Bxe4 {[%clk 0:02:24]}  e6 {[%clk 0:02:31]} 11. Nf3 {[%clk 0:02:17]}  Be7 {[%clk 0:02:27]} 12. Ne5 {[%clk 0:02:17]}  Nd5 {[%clk 0:02:24]} 13. c4 {[%clk 0:02:14]}  Nf6 {[%clk 0:02:24]} 14. Bg2 {[%clk 0:02:15]}  O-O {[%clk 0:02:22]} 15. Be3 {[%clk 0:02:15]}  Bd6 {[%clk 0:02:15]} 16. Nd3 {[%clk 0:02:05]}  Re8 {[%clk 0:02:11]} 17. Re1 {[%clk 0:01:49]}  Rb8 {[%clk 0:02:02]} 18. Qd2 {[%clk 0:01:31]}  b5 {[%clk 0:01:57]} 19. b3 {[%clk 0:01:30]}  Bc7 {[%clk 0:01:40]} 20. Bf4 {[%clk 0:01:27]}  Ba5 {[%clk 0:01:33]} 21. b4 {[%clk 0:01:23]}  Bc7 {[%clk 0:01:34]} 22. Bxc7 {[%clk 0:01:18]}  Qxc7 {[%clk 0:01:35]} 23. Nc5 {[%clk 0:01:18]}  Rbd8 {[%clk 0:01:26]} 24. Qc3 {[%clk 0:01:02]}  bxc4 {[%clk 0:01:20]} 25. Qxc4 {[%clk 0:01:03]}  Nd5 {[%clk 0:01:20]} 26. a3 {[%clk 0:00:46]}  Qb6 {[%clk 0:01:14]} 27. h4 {[%clk 0:00:35]}  Bc8 {[%clk 0:01:08]} 28. h5 {[%clk 0:00:34]}  h6 {[%clk 0:01:07]} 29. Rab1 {[%clk 0:00:30]}  Qb5 {[%clk 0:01:00]} 30. Qc2 {[%clk 0:00:21]}  Nf6 {[%clk 0:01:00]} 31. Re5 {[%clk 0:00:11]}  Rxd4 {[%clk 0:00:54]} 32. Rbe1 {[%clk 0:00:08]}  Qc4 {[%clk 0:00:47]} 33. Qxc4 {[%clk 0:00:06]}  Rxc4 {[%clk 0:00:48]} 34. Bxc6 {[%clk 0:00:06]}  Rd8 {[%clk 0:00:48]} 35. Bf3 {[%clk 0:00:06]}  Rc3 {[%clk 0:00:47]} 36. R5e3 {[%clk 0:00:06]}  Rc2 {[%clk 0:00:43]} 37. R1e2 {[%clk 0:00:06]}  Rc1+ {[%clk 0:00:43]} 38. Re1 {[%clk 0:00:06]}  Rc2 {[%clk 0:00:43]} 39. a4 {[%clk 0:00:06]}  Rc4 {[%clk 0:00:35]} 40. Rb3 {[%clk 0:00:06]}  Rdd4 {[%clk 0:00:34]} 41. Reb1 {[%clk 0:00:05]}  Nd5 {[%clk 0:00:32]} 42. Bxd5 {[%clk 0:00:04]}  Rxd5 {[%clk 0:00:33]} 43. a5 {[%clk 0:00:02]}  Rxh5 {[%clk 0:00:32]} 44. Nd3 {[%clk 0:00:03]}  Bb7 {[%clk 0:00:31]} 45. f3 {[%clk 0:00:03]}  Bxf3 {[%clk 0:00:29]} 46. Nf4 {[%clk 0:00:04]}  Rh1+ {[%clk 0:00:29]} 47. Kf2 {[%clk 0:00:04]}  Rxb1 {[%clk 0:00:30]} 48. Rxb1 {[%clk 0:00:05]}  Bb7 {[%clk 0:00:29]} 49. b5 {[%clk 0:00:05]}  Rc2+ {[%clk 0:00:28]} 50. Ke3 {[%clk 0:00:05]}  Rc3+ {[%clk 0:00:27]} 51. Kd4 {[%clk 0:00:06]}  Rxg3 {[%clk 0:00:28]} 52. Nd3 {[%clk 0:00:05]}  Bd5 {[%clk 0:00:25]} 53. Nc5 {[%clk 0:00:04]}  Rg4+ {[%clk 0:00:25]} 54. Ke5 {[%clk 0:00:05]}  Kf8 {[%clk 0:00:20]} 55. a6 {[%clk 0:00:03]}  Ke7 {[%clk 0:00:21]} 56. Nxe6 {[%clk 0:00:01]}  Bxe6 {[%clk 0:00:19]} 57. b6 {[%clk 0:00:01]}  f6# {[%clk 0:00:20]} 0-1


[Site "https://www.chess.com"]

[Event "Titled Tuesday Blitz November 22 Early 2022"]
[White "Golubev, Mikhail"]
[Black "Levitan, Caleb Levi"]
[WhiteFideId "14100983"]
[BlackFideId "14332620"]
[WhiteElo "2374"]
[BlackElo "1963"]
[Result "1-0"]
[Round "09"]
[TimeControl "180+1"]
[Date "2022.11.23"]
[WhiteClock "0:00:13"]
[BlackClock "0:00:04"]

1. e4 {[%clk 0:02:56]}  c5 {[%clk 0:02:59]} 2. Nf3 {[%clk 0:02:55]}  e6 {[%clk 0:02:59]} 3. d4 {[%clk 0:02:55]}  cxd4 {[%clk 0:03:00]} 4. Nxd4 {[%clk 0:02:55]}  a6 {[%clk 0:03:01]} 5. Bd3 {[%clk 0:02:54]}  b5 {[%clk 0:02:59]} 6. O-O {[%clk 0:02:51]}  Bb7 {[%clk 0:02:59]} 7. a4 {[%clk 0:02:40]}  Nc6 {[%clk 0:02:34]} 8. Nxc6 {[%clk 0:02:31]}  Bxc6 {[%clk 0:02:33]} 9. axb5 {[%clk 0:02:21]}  axb5 {[%clk 0:02:32]} 10. Rxa8 {[%clk 0:02:19]}  Qxa8 {[%clk 0:02:33]} 11. Qe2 {[%clk 0:02:19]}  Nf6 {[%clk 0:02:31]} 12. f3 {[%clk 0:02:10]}  Bc5+ {[%clk 0:02:27]} 13. Kh1 {[%clk 0:02:04]}  b4 {[%clk 0:02:24]} 14. Be3 {[%clk 0:02:01]}  Bxe3 {[%clk 0:02:24]} 15. Qxe3 {[%clk 0:02:01]}  O-O {[%clk 0:02:24]} 16. Nd2 {[%clk 0:01:57]}  d5 {[%clk 0:02:24]} 17. e5 {[%clk 0:01:55]}  Nd7 {[%clk 0:02:23]} 18. Nb3 {[%clk 0:01:48]}  Qb8 {[%clk 0:02:17]} 19. f4 {[%clk 0:01:41]}  Rc8 {[%clk 0:02:11]} 20. Nd4 {[%clk 0:01:35]}  Ba4 {[%clk 0:01:51]} 21. Ra1 {[%clk 0:01:26]}  Bc6 {[%clk 0:01:44]} 22. Re1 {[%clk 0:01:21]}  Nc5 {[%clk 0:01:41]} 23. f5 {[%clk 0:01:18]}  Nxd3 {[%clk 0:01:41]} 24. cxd3 {[%clk 0:01:07]}  Bd7 {[%clk 0:01:38]} 25. f6 {[%clk 0:01:04]}  Rc7 {[%clk 0:00:50]} 26. fxg7 {[%clk 0:00:53]}  Qd8 {[%clk 0:00:45]} 27. Rf1 {[%clk 0:00:46]}  Be8 {[%clk 0:00:39]} 28. Qh6 {[%clk 0:00:39]}  Qe7 {[%clk 0:00:13]} 29. h3 {[%clk 0:00:29]}  Ra7 {[%clk 0:00:06]} 30. Nf3 {[%clk 0:00:21]}  f5 {[%clk 0:00:03]} 31. exf6 {[%clk 0:00:20]}  Qf7 {[%clk 0:00:02]} 32. Ne5 {[%clk 0:00:19]}  Qc7 {[%clk 0:00:01]} 33. f7+ {[%clk 0:00:17]}  Bxf7 {[%clk 0:00:02]} 34. Nxf7 {[%clk 0:00:14]}  Qxf7 {[%clk 0:00:02]} 35. Rxf7 {[%clk 0:00:13]}  Rxf7 {[%clk 0:00:03]} 36. Qxe6 {[%clk 0:00:13]}  Kxg7 {[%clk 0:00:04]} 37. Qxd5 {[%clk 0:00:13]}  Rf1+ {[%clk 0:00:04]} 38. Kh2 {[%clk 0:00:12]}  Rb1 {[%clk 0:00:04]} 39. Qd4+ {[%clk 0:00:12]}  Kg6 {[%clk 0:00:04]} 40. Qxb4 {[%clk 0:00:13]}  Rd1 {[%clk 0:00:04]} 41. Qd6+ {[%clk 0:00:13]} 1-0


[Site "https://www.chess.com"]

[Event "Titled Tuesday Blitz November 22 Early 2022"]
[White "Goryachkina, Aleksandra"]
[Black "Zemlyanskii, Ivan"]
[WhiteFideId "4147103"]
[BlackFideId "24249971"]
[WhiteElo "2484"]
[BlackElo "2107"]
[Result "1-0"]
[Round "09"]
[TimeControl "180+1"]
[Date "2022.11.22"]
[WhiteClock "0:00:36"]
[BlackClock "0:00:01"]

1. e4 {[%clk 0:02:59]}  c5 {[%clk 0:02:59]} 2. Nf3 {[%clk 0:02:59]}  d6 {[%clk 0:03:00]} 3. Bb5+ {[%clk 0:02:59]}  Nd7 {[%clk 0:03:00]} 4. Ba4 {[%clk 0:02:58]}  Nf6 {[%clk 0:02:58]} 5. O-O {[%clk 0:02:58]}  e6 {[%clk 0:02:55]} 6. Re1 {[%clk 0:02:53]}  a6 {[%clk 0:02:48]} 7. c3 {[%clk 0:02:46]}  b5 {[%clk 0:02:48]} 8. Bc2 {[%clk 0:02:46]}  Bb7 {[%clk 0:02:48]} 9. d4 {[%clk 0:02:43]}  Be7 {[%clk 0:02:49]} 10. Nbd2 {[%clk 0:02:41]}  Qc7 {[%clk 0:02:45]} 11. Nf1 {[%clk 0:02:29]}  O-O {[%clk 0:02:41]} 12. Ng3 {[%clk 0:02:28]}  Rac8 {[%clk 0:02:37]} 13. Bd3 {[%clk 0:02:27]}  Rfd8 {[%clk 0:02:31]} 14. h3 {[%clk 0:02:17]}  h6 {[%clk 0:02:24]} 15. Be3 {[%clk 0:02:16]}  Qb8 {[%clk 0:02:14]} 16. Qe2 {[%clk 0:02:05]}  Qa8 {[%clk 0:01:44]} 17. Bd2 {[%clk 0:01:58]}  Nb6 {[%clk 0:01:36]} 18. Rad1 {[%clk 0:01:54]}  cxd4 {[%clk 0:01:24]} 19. cxd4 {[%clk 0:01:53]}  Nc4 {[%clk 0:01:25]} 20. Bc1 {[%clk 0:01:52]}  Rc7 {[%clk 0:01:20]} 21. Nh2 {[%clk 0:01:44]}  Rdc8 {[%clk 0:00:43]} 22. Ng4 {[%clk 0:01:39]}  d5 {[%clk 0:00:25]} 23. Nxf6+ {[%clk 0:01:33]}  Bxf6 {[%clk 0:00:26]} 24. e5 {[%clk 0:01:32]}  Be7 {[%clk 0:00:20]} 25. Nh5 {[%clk 0:01:11]}  Bf8 {[%clk 0:00:11]} 26. Bb1 {[%clk 0:01:10]}  g6 {[%clk 0:00:03]} 27. Nf6+ {[%clk 0:01:06]}  Kh8 {[%clk 0:00:04]} 28. h4 {[%clk 0:01:06]}  Bg7 {[%clk 0:00:03]} 29. h5 {[%clk 0:01:05]}  Bxf6 {[%clk 0:00:02]} 30. exf6 {[%clk 0:01:05]}  Nd6 {[%clk 0:00:01]} 31. hxg6 {[%clk 0:01:03]}  fxg6 {[%clk 0:00:02]} 32. Bxh6 {[%clk 0:01:01]}  Nf5 {[%clk 0:00:01]} 33. Bxf5 {[%clk 0:00:56]}  exf5 {[%clk 0:00:01]} 34. Qe6 {[%clk 0:00:45]}  Rh7 {[%clk 0:00:01]} 35. Bg7+ {[%clk 0:00:43]}  Rxg7 {[%clk 0:00:02]} 36. fxg7+ {[%clk 0:00:43]}  Kxg7 {[%clk 0:00:03]} 37. Qd7+ {[%clk 0:00:43]}  Kh6 {[%clk 0:00:03]} 38. Re7 {[%clk 0:00:41]}  Rc2 {[%clk 0:00:02]} 39. Rh7+ {[%clk 0:00:36]}  Kg5 {[%clk 0:00:02]} 40. Qe7+ {[%clk 0:00:36]}  Kf4 {[%clk 0:00:01]} 41. Rh4# {[%clk 0:00:36]} 1-0


[Site "https://www.chess.com"]

[Event "Titled Tuesday Blitz November 22 Early 2022"]
[White "Hambleton, Aman"]
[Black "Skliarov, Viktor"]
[WhiteFideId "2606577"]
[BlackFideId "14106736"]
[WhiteElo "2538"]
[BlackElo "2284"]
[Result "0-1"]
[Round "09"]
[TimeControl "180+1"]
[Date "2022.11.23"]
[WhiteClock "0:00:01"]
[BlackClock "0:00:16"]

1. d4 {[%clk 0:03:00]}  Nf6 {[%clk 0:02:59]} 2. c4 {[%clk 0:02:56]}  e6 {[%clk 0:02:58]} 3. Nc3 {[%clk 0:02:49]}  Bb4 {[%clk 0:02:57]} 4. Qc2 {[%clk 0:02:47]}  c5 {[%clk 0:02:57]} 5. dxc5 {[%clk 0:02:44]}  Na6 {[%clk 0:02:57]} 6. g3 {[%clk 0:02:42]}  Nxc5 {[%clk 0:02:53]} 7. Bg2 {[%clk 0:02:42]}  O-O {[%clk 0:02:51]} 8. Nf3 {[%clk 0:02:42]}  Nce4 {[%clk 0:02:46]} 9. O-O {[%clk 0:02:42]}  Nxc3 {[%clk 0:02:45]} 10. bxc3 {[%clk 0:02:43]}  Bc5 {[%clk 0:02:39]} 11. Nd4 {[%clk 0:02:28]}  a6 {[%clk 0:02:31]} 12. Nb3 {[%clk 0:02:19]}  Qc7 {[%clk 0:02:20]} 13. Nxc5 {[%clk 0:02:04]}  Qxc5 {[%clk 0:02:18]} 14. Qb3 {[%clk 0:02:05]}  Qh5 {[%clk 0:01:53]} 15. Ba3 {[%clk 0:01:28]}  Re8 {[%clk 0:01:51]} 16. e4 {[%clk 0:01:27]}  d5 {[%clk 0:01:22]} 17. cxd5 {[%clk 0:01:20]}  exd5 {[%clk 0:01:22]} 18. exd5 {[%clk 0:01:21]}  Bh3 {[%clk 0:01:18]} 19. c4 {[%clk 0:00:37]}  Ng4 {[%clk 0:00:41]} 20. Qf3 {[%clk 0:00:37]}  Bxg2 {[%clk 0:00:42]} 21. Qxg2 {[%clk 0:00:38]}  Re2 {[%clk 0:00:42]} 22. d6 {[%clk 0:00:22]}  Rd8 {[%clk 0:00:21]} 23. Rae1 {[%clk 0:00:20]}  Ne3 {[%clk 0:00:19]} 24. Qe4 {[%clk 0:00:04]}  Ng4 {[%clk 0:00:17]} 25. Qg2 {[%clk 0:00:02]}  Ne3 {[%clk 0:00:17]} 26. Qe4 {[%clk 0:00:01]}  Ng4 {[%clk 0:00:16]} 0-1


[Site "https://www.chess.com"]

[Event "Titled Tuesday Blitz November 22 Early 2022"]
[White "Horak, Martin"]
[Black "Matinian, Nikita"]
[WhiteFideId "367095"]
[BlackFideId "24129100"]
[WhiteElo "2091"]
[BlackElo "2422"]
[Result "1/2-1/2"]
[Round "09"]
[TimeControl "180+1"]
[Date "2022.11.23"]
[WhiteClock "0:00:04"]
[BlackClock "0:00:02"]

1. e4 {[%clk 0:02:53]}  c5 {[%clk 0:02:59]} 2. Nf3 {[%clk 0:02:53]}  d6 {[%clk 0:02:59]} 3. d4 {[%clk 0:02:52]}  cxd4 {[%clk 0:03:00]} 4. Qxd4 {[%clk 0:02:53]}  Nc6 {[%clk 0:02:55]} 5. Qe3 {[%clk 0:02:53]}  g6 {[%clk 0:02:54]} 6. Be2 {[%clk 0:02:52]}  Nf6 {[%clk 0:02:40]} 7. h3 {[%clk 0:02:51]}  Bg7 {[%clk 0:02:40]} 8. O-O {[%clk 0:02:51]}  O-O {[%clk 0:02:41]} 9. Rd1 {[%clk 0:02:52]}  Bd7 {[%clk 0:02:37]} 10. Nc3 {[%clk 0:02:51]}  Rc8 {[%clk 0:02:34]} 11. Qf4 {[%clk 0:02:49]}  Qb6 {[%clk 0:02:02]} 12. Qh4 {[%clk 0:02:43]}  Rfd8 {[%clk 0:01:38]} 13. Bh6 {[%clk 0:02:40]}  Qxb2 {[%clk 0:01:34]} 14. Nd5 {[%clk 0:02:00]}  Bxh6 {[%clk 0:01:26]} 15. Rab1 {[%clk 0:01:34]}  Qxc2 {[%clk 0:00:31]} 16. Bd3 {[%clk 0:01:34]}  Qxd1+ {[%clk 0:00:23]} 17. Rxd1 {[%clk 0:01:33]}  Bg7 {[%clk 0:00:24]} 18. Ng5 {[%clk 0:01:02]}  h6 {[%clk 0:00:23]} 19. Nxf6+ {[%clk 0:01:01]}  exf6 {[%clk 0:00:23]} 20. Nf3 {[%clk 0:01:02]}  Ne5 {[%clk 0:00:22]} 21. Bb1 {[%clk 0:00:38]}  Ba4 {[%clk 0:00:21]} 22. Re1 {[%clk 0:00:33]}  Nxf3+ {[%clk 0:00:19]} 23. gxf3 {[%clk 0:00:32]}  Bc2 {[%clk 0:00:17]} 24. Qf4 {[%clk 0:00:30]}  b6 {[%clk 0:00:10]} 25. Qd2 {[%clk 0:00:29]}  Bxb1 {[%clk 0:00:09]} 26. Rxb1 {[%clk 0:00:30]}  Rc5 {[%clk 0:00:08]} 27. Rb3 {[%clk 0:00:24]}  f5 {[%clk 0:00:08]} 28. Rd3 {[%clk 0:00:23]}  fxe4 {[%clk 0:00:08]} 29. fxe4 {[%clk 0:00:23]}  Re8 {[%clk 0:00:08]} 30. f3 {[%clk 0:00:22]}  Rg5+ {[%clk 0:00:07]} 31. Kf2 {[%clk 0:00:20]}  Rh5 {[%clk 0:00:07]} 32. Kg2 {[%clk 0:00:20]}  Be5 {[%clk 0:00:06]} 33. f4 {[%clk 0:00:19]}  Bg7 {[%clk 0:00:06]} 34. Qe2 {[%clk 0:00:09]}  Rc5 {[%clk 0:00:03]} 35. Rxd6 {[%clk 0:00:08]}  Rec8 {[%clk 0:00:03]} 36. Rd2 {[%clk 0:00:07]}  Rc3 {[%clk 0:00:02]} 37. Rd3 {[%clk 0:00:07]}  Rc2 {[%clk 0:00:02]} 38. Rd2 {[%clk 0:00:07]}  R2c4 {[%clk 0:00:02]} 39. Rd3 {[%clk 0:00:05]}  Kh7 {[%clk 0:00:02]} 40. Rd2 {[%clk 0:00:04]}  Rc3 {[%clk 0:00:02]} 41. Rd3 {[%clk 0:00:04]}  R3c7 {[%clk 0:00:02]} 42. Rd2 {[%clk 0:00:04]}  Re8 {[%clk 0:00:02]} 43. e5 {[%clk 0:00:04]}  Rce7 {[%clk 0:00:02]} 44. Qe4 {[%clk 0:00:04]}  f6 {[%clk 0:00:02]} 45. Rd6 {[%clk 0:00:03]}  f5 {[%clk 0:00:02]} 46. Qc6 {[%clk 0:00:03]}  g5 {[%clk 0:00:01]} 47. Kf3 {[%clk 0:00:02]}  gxf4 {[%clk 0:00:01]} 48. Kxf4 {[%clk 0:00:03]}  Bxe5+ {[%clk 0:00:01]} 49. Kxf5 {[%clk 0:00:03]}  Bxd6 {[%clk 0:00:02]} 50. Qxd6 {[%clk 0:00:03]}  Rf8+ {[%clk 0:00:02]} 51. Kg4 {[%clk 0:00:03]}  Rg7+ {[%clk 0:00:02]} 52. Kh4 {[%clk 0:00:03]}  Rfg8 {[%clk 0:00:02]} 53. Qd3+ {[%clk 0:00:02]}  Kh8 {[%clk 0:00:03]} 54. Qd4 {[%clk 0:00:03]}  Kh7 {[%clk 0:00:03]} 55. Qd3+ {[%clk 0:00:04]}  Kh8 {[%clk 0:00:03]} 56. Qd4 {[%clk 0:00:04]}  Kh7 {[%clk 0:00:02]} 57. Qd3+ {[%clk 0:00:04]} 1/2-1/2


[Site "https://www.chess.com"]

[Event "Titled Tuesday Blitz November 22 Early 2022"]
[White "Ilkhomi, Jaloliddin"]
[Black "Boraso, Alessio"]
[WhiteFideId "14700948"]
[BlackFideId "848077"]
[WhiteElo "2045"]
[BlackElo "2286"]
[Result "1-0"]
[Round "09"]
[TimeControl "180+1"]
[Date "2022.11.23"]
[WhiteClock "0:00:04"]
[BlackClock "0:00:04"]

1. d4 {[%clk 0:03:00]}  Nf6 {[%clk 0:02:57]} 2. Nf3 {[%clk 0:03:00]}  g6 {[%clk 0:02:56]} 3. Bg5 {[%clk 0:02:54]}  Bg7 {[%clk 0:02:56]} 4. c3 {[%clk 0:02:53]}  O-O {[%clk 0:02:56]} 5. Nbd2 {[%clk 0:02:53]}  d5 {[%clk 0:02:55]} 6. e3 {[%clk 0:02:53]}  Nbd7 {[%clk 0:02:55]} 7. Bd3 {[%clk 0:02:53]}  b6 {[%clk 0:02:54]} 8. O-O {[%clk 0:02:53]}  Bb7 {[%clk 0:02:55]} 9. Qe2 {[%clk 0:02:51]}  Ne4 {[%clk 0:02:50]} 10. Bh4 {[%clk 0:02:49]}  Ndf6 {[%clk 0:02:49]} 11. Ne5 {[%clk 0:02:45]}  Nxd2 {[%clk 0:02:43]} 12. Qxd2 {[%clk 0:02:46]}  c5 {[%clk 0:02:40]} 13. f4 {[%clk 0:02:45]}  Ne4 {[%clk 0:02:26]} 14. Qc2 {[%clk 0:02:38]}  f6 {[%clk 0:02:23]} 15. Nf3 {[%clk 0:02:35]}  Nd6 {[%clk 0:02:13]} 16. Rfe1 {[%clk 0:02:30]}  Qd7 {[%clk 0:02:13]} 17. Rad1 {[%clk 0:02:29]}  Rae8 {[%clk 0:02:13]} 18. Bg3 {[%clk 0:02:27]}  c4 {[%clk 0:02:07]} 19. Be2 {[%clk 0:02:25]}  Bc8 {[%clk 0:02:05]} 20. b3 {[%clk 0:02:19]}  b5 {[%clk 0:02:04]} 21. bxc4 {[%clk 0:02:15]}  bxc4 {[%clk 0:02:05]} 22. Nd2 {[%clk 0:02:13]}  Qc6 {[%clk 0:02:02]} 23. Bf3 {[%clk 0:02:10]}  Bf5 {[%clk 0:02:01]} 24. e4 {[%clk 0:02:06]}  dxe4 {[%clk 0:01:56]} 25. Nxe4 {[%clk 0:02:06]}  Rb8 {[%clk 0:01:19]} 26. Qe2 {[%clk 0:01:10]}  Nxe4 {[%clk 0:01:07]} 27. Bxe4 {[%clk 0:01:09]}  Bxe4 {[%clk 0:01:08]} 28. Qxe4 {[%clk 0:01:08]}  Qxe4 {[%clk 0:01:09]} 29. Rxe4 {[%clk 0:01:09]}  Kf7 {[%clk 0:01:09]} 30. Rde1 {[%clk 0:00:50]}  Rb7 {[%clk 0:01:09]} 31. d5 {[%clk 0:00:44]}  Rc8 {[%clk 0:01:07]} 32. Re6 {[%clk 0:00:35]}  f5 {[%clk 0:01:05]} 33. Bh4 {[%clk 0:00:27]}  Rcc7 {[%clk 0:01:02]} 34. d6 {[%clk 0:00:25]}  exd6 {[%clk 0:01:01]} 35. R6e3 {[%clk 0:00:13]}  d5 {[%clk 0:00:56]} 36. Rd1 {[%clk 0:00:12]}  Rd7 {[%clk 0:00:56]} 37. Bf2 {[%clk 0:00:11]}  d4 {[%clk 0:00:49]} 38. cxd4 {[%clk 0:00:02]}  Bxd4 {[%clk 0:00:47]} 39. Ree1 {[%clk 0:00:02]}  Bxf2+ {[%clk 0:00:47]} 40. Kxf2 {[%clk 0:00:03]}  Rxd1 {[%clk 0:00:45]} 41. Rxd1 {[%clk 0:00:03]}  Rb2+ {[%clk 0:00:45]} 42. Kf3 {[%clk 0:00:03]}  Rxa2 {[%clk 0:00:43]} 43. Rd7+ {[%clk 0:00:04]}  Kf6 {[%clk 0:00:41]} 44. Rxh7 {[%clk 0:00:02]}  Ra3+ {[%clk 0:00:36]} 45. Ke2 {[%clk 0:00:02]}  a5 {[%clk 0:00:36]} 46. Rc7 {[%clk 0:00:01]}  Rc3 {[%clk 0:00:36]} 47. Rc5 {[%clk 0:00:02]}  a4 {[%clk 0:00:36]} 48. Kd2 {[%clk 0:00:03]}  Rd3+ {[%clk 0:00:36]} 49. Kc2 {[%clk 0:00:03]}  Rd4 {[%clk 0:00:37]} 50. g3 {[%clk 0:00:03]}  a3 {[%clk 0:00:35]} 51. Ra5 {[%clk 0:00:04]}  Rd3 {[%clk 0:00:36]} 52. Ra4 {[%clk 0:00:04]}  Rf3 {[%clk 0:00:33]} 53. Rxc4 {[%clk 0:00:04]}  a2 {[%clk 0:00:33]} 54. Ra4 {[%clk 0:00:04]}  Rf2+ {[%clk 0:00:32]} 55. Kb3 {[%clk 0:00:04]}  Rxh2 {[%clk 0:00:32]} 56. Ra6+ {[%clk 0:00:04]}  Kf7 {[%clk 0:00:32]} 57. Kc4 {[%clk 0:00:04]}  Rd2 {[%clk 0:00:28]} 58. Kc3 {[%clk 0:00:04]}  Rg2 {[%clk 0:00:28]} 59. Kd4 {[%clk 0:00:04]}  Rxg3 {[%clk 0:00:25]} 60. Rxa2 {[%clk 0:00:03]}  Rf3 {[%clk 0:00:26]} 61. Ke5 {[%clk 0:00:03]}  Re3+ {[%clk 0:00:26]} 62. Kd5 {[%clk 0:00:04]}  Re4 {[%clk 0:00:26]} 63. Rf2 {[%clk 0:00:03]}  Kg7 {[%clk 0:00:26]} 64. Rf3 {[%clk 0:00:03]}  Kh6 {[%clk 0:00:26]} 65. Rh3+ {[%clk 0:00:03]}  Kg7 {[%clk 0:00:26]} 66. Rf3 {[%clk 0:00:04]}  Kf6 {[%clk 0:00:21]} 67. Rf2 {[%clk 0:00:04]}  g5 {[%clk 0:00:17]} 68. fxg5+ {[%clk 0:00:05]}  Kxg5 {[%clk 0:00:18]} 69. Rf1 {[%clk 0:00:05]}  Ra4 {[%clk 0:00:16]} 70. Rg1+ {[%clk 0:00:05]}  Kf6 {[%clk 0:00:16]} 71. Rf1 {[%clk 0:00:05]}  f4 {[%clk 0:00:16]} 72. Ra1 {[%clk 0:00:04]}  Kf5 {[%clk 0:00:16]} 73. Rxa4 {[%clk 0:00:04]}  f3 {[%clk 0:00:10]} 74. Ra2 {[%clk 0:00:04]}  Kf4 {[%clk 0:00:04]} 75. Kd4 {[%clk 0:00:04]} 1-0


[Site "https://www.chess.com"]

[Event "Titled Tuesday Blitz November 22 Early 2022"]
[White "Izuzquiza Gonzalez, Javier"]
[Black "Ovchinnikov, Vsevolod"]
[WhiteFideId "3101029"]
[BlackFideId "24176842"]
[WhiteElo "2034"]
[BlackElo "2376"]
[Result "0-1"]
[Round "09"]
[TimeControl "180+1"]
[Date "2022.11.23"]
[WhiteClock "0:00:06"]
[BlackClock "0:00:08"]

1. d4 {[%clk 0:02:58]}  Nf6 {[%clk 0:02:59]} 2. c4 {[%clk 0:02:55]}  g6 {[%clk 0:02:59]} 3. Nf3 {[%clk 0:02:54]}  Bg7 {[%clk 0:02:59]} 4. g3 {[%clk 0:02:55]}  d5 {[%clk 0:02:59]} 5. Bg2 {[%clk 0:02:54]}  dxc4 {[%clk 0:03:00]} 6. O-O {[%clk 0:02:54]}  O-O {[%clk 0:03:00]} 7. Na3 {[%clk 0:02:53]}  Nc6 {[%clk 0:03:00]} 8. Nxc4 {[%clk 0:02:53]}  Be6 {[%clk 0:03:01]} 9. Nce5 {[%clk 0:02:53]}  Bd5 {[%clk 0:03:01]} 10. Bf4 {[%clk 0:02:45]}  e6 {[%clk 0:02:57]} 11. a3 {[%clk 0:02:37]}  h6 {[%clk 0:02:40]} 12. b4 {[%clk 0:02:18]}  a6 {[%clk 0:02:34]} 13. Rc1 {[%clk 0:02:08]}  Nd7 {[%clk 0:02:07]} 14. Nxc6 {[%clk 0:01:56]}  Bxc6 {[%clk 0:02:06]} 15. Re1 {[%clk 0:01:36]}  g5 {[%clk 0:01:46]} 16. Bd2 {[%clk 0:01:27]}  Nb6 {[%clk 0:01:45]} 17. Bc3 {[%clk 0:01:23]}  Be4 {[%clk 0:01:22]} 18. Bb2 {[%clk 0:01:12]}  c6 {[%clk 0:01:07]} 19. Qb3 {[%clk 0:01:06]}  Qd5 {[%clk 0:00:58]} 20. Qxd5 {[%clk 0:00:55]}  exd5 {[%clk 0:00:59]} 21. Nd2 {[%clk 0:00:49]}  Bxg2 {[%clk 0:00:59]} 22. Kxg2 {[%clk 0:00:49]}  a5 {[%clk 0:00:52]} 23. bxa5 {[%clk 0:00:35]}  Rxa5 {[%clk 0:00:51]} 24. Bc3 {[%clk 0:00:36]}  Ra6 {[%clk 0:00:34]} 25. Bb4 {[%clk 0:00:33]}  Rfa8 {[%clk 0:00:32]} 26. e3 {[%clk 0:00:33]}  Bf8 {[%clk 0:00:30]} 27. Rb1 {[%clk 0:00:24]}  R8a7 {[%clk 0:00:20]} 28. Rb3 {[%clk 0:00:21]}  Bxb4 {[%clk 0:00:17]} 29. Rxb4 {[%clk 0:00:19]}  Nc8 {[%clk 0:00:17]} 30. Reb1 {[%clk 0:00:19]}  Nd6 {[%clk 0:00:17]} 31. Nf3 {[%clk 0:00:12]}  Rxa3 {[%clk 0:00:16]} 32. Ne5 {[%clk 0:00:13]}  R3a4 {[%clk 0:00:16]} 33. R4b2 {[%clk 0:00:12]}  Ra2 {[%clk 0:00:16]} 34. Rb4 {[%clk 0:00:11]}  Rc2 {[%clk 0:00:16]} 35. R1b2 {[%clk 0:00:09]}  Rxb2 {[%clk 0:00:16]} 36. Rxb2 {[%clk 0:00:10]}  f6 {[%clk 0:00:15]} 37. Nd7 {[%clk 0:00:10]}  Kf7 {[%clk 0:00:15]} 38. Nc5 {[%clk 0:00:10]}  Ke7 {[%clk 0:00:15]} 39. h4 {[%clk 0:00:08]}  g4 {[%clk 0:00:15]} 40. h5 {[%clk 0:00:07]}  f5 {[%clk 0:00:15]} 41. f3 {[%clk 0:00:07]}  gxf3+ {[%clk 0:00:15]} 42. Kxf3 {[%clk 0:00:08]}  b5 {[%clk 0:00:14]} 43. Kf4 {[%clk 0:00:07]}  Kf6 {[%clk 0:00:14]} 44. Nd3 {[%clk 0:00:07]}  Rg7 {[%clk 0:00:11]} 45. Ne5 {[%clk 0:00:06]}  Nc4 {[%clk 0:00:11]} 46. Rc2 {[%clk 0:00:04]}  Ke6 {[%clk 0:00:10]} 47. Nxc6 {[%clk 0:00:03]}  Rg4+ {[%clk 0:00:09]} 48. Kf3 {[%clk 0:00:03]}  Re4 {[%clk 0:00:09]} 49. Rc3 {[%clk 0:00:01]}  Kd6 {[%clk 0:00:08]} 50. Nb4 {[%clk 0:00:02]}  Rg4 {[%clk 0:00:06]} 51. Nc2 {[%clk 0:00:03]}  Rg5 {[%clk 0:00:06]} 52. Ne1 {[%clk 0:00:04]}  Rxh5 {[%clk 0:00:06]} 53. Ng2 {[%clk 0:00:04]}  Rg5 {[%clk 0:00:06]} 54. Nf4 {[%clk 0:00:05]}  Rg8 {[%clk 0:00:07]} 55. Nh5 {[%clk 0:00:05]}  Rb8 {[%clk 0:00:07]} 56. Nf4 {[%clk 0:00:06]}  b4 {[%clk 0:00:07]} 57. Rb3 {[%clk 0:00:06]}  Nd2+ {[%clk 0:00:08]} 0-1


[Site "https://www.chess.com"]